bitfinex-derivatives/quotes_BTCF0:USTF0_20210703
["timestamp","ask_amount","ask_price","bid_price","bid_amount"]
[1625332615615,2.22881273,34554.0,34553.0,7.62976163]
[1625332615966,2.22881273,34554.0,34553.0,7.31870163]
[1625332616068,2.22881273,34554.0,34553.0,7.25970163]
[1625332616467,2.46938817,34554.0,34553.0,7.25970163]
[1625332616574,2.48654226,34554.0,34553.0,7.25970163]
[1625332616767,2.48654226,34554.0,34553.0,7.01912619]
[1625332616865,2.48654226,34554.0,34553.0,6.77855075]
[1625332617218,6.59880585,34554.0,34553.0,2.69612298]
[1625332617517,6.65780585,34554.0,34553.0,2.69612298]
[1625332617821,6.65780585,34554.0,34553.0,1.33506836]
[1625332618470,6.89838129,34554.0,34553.0,1.09449292]
[1625332618622,6.89838129,34554.0,34553.0,0.58408388]
[1625332619322,6.89838129,34554.0,34553.0,0.75453072]
[1625332619925,6.89838129,34554.0,34553.0,0.49963251]
[1625332620272,6.8812272,34554.0,34553.0,0.49963251]
[1625332620676,6.8812272,34554.0,34553.0,0.71655251]
[1625332620825,6.8222272,34554.0,34553.0,0.77555251]
[1625332621026,6.58165176,34554.0,34553.0,0.77555251]
[1625332621128,6.34107632,34554.0,34553.0,0.77555251]
[1625332621276,6.34107632,34554.0,34553.0,0.83455251]
[1625332621726,6.34107632,34554.0,34553.0,5.33837415]
[1625332621727,3.42824436,34554.0,34553.0,5.33837415]
[1625332622385,2.22881273,34554.0,34553.0,5.33837415]
[1625332622478,2.22881273,34554.0,34553.0,5.57894959]
[1625332625935,2.53233273,34554.0,34553.0,5.51994959]
[1625332626042,2.53233273,34554.0,34553.0,5.30302959]
[1625332626189,2.53233273,34554.0,34553.0,5.24402959]
[1625332626286,3.73068325,34554.0,34553.0,5.24402959]
[1625332626387,3.78968325,34554.0,34553.0,5.24402959]
[1625332626786,3.73068325,34554.0,34553.0,5.24402959]
[1625332626886,6.70019879,34554.0,34553.0,1.67444338]
[1625332628490,6.70019879,34554.0,34553.0,0.9945222]
[1625332629588,6.70019879,34554.0,34553.0,1.6745132]
[1625332629688,6.64119879,34554.0,34553.0,1.6745132]
[1625332630189,6.64119879,34554.0,34553.0,0.9945222]
[1625332631091,6.64119879,34554.0,34553.0,1.0535222]
[1625332631944,5.10034769,34554.0,34553.0,2.75198862]
[1625332635149,5.10034769,34554.0,34553.0,3.94040992]
[1625332635599,5.10034769,34554.0,34553.0,2.75198862]
[1625332636153,5.10034769,34554.0,34553.0,3.9403008]
[1625332638555,5.10034769,34554.0,34553.0,4.1527008]
[1625332638757,3.42716325,34554.0,34553.0,4.1527008]
[1625332640766,3.42716325,34554.0,34553.0,5.50877376]
[1625332641617,3.42716325,34554.0,34553.0,5.56777376]
[1625332642068,3.42716325,34554.0,34553.0,5.50877376]
[1625332643220,2.22881273,34554.0,34553.0,5.50877376]
[1625332643471,2.22881273,34554.0,34553.0,5.56777376]
[1625332644022,2.22881273,34554.0,34553.0,5.50877376]
[1625332644526,2.22881273,34554.0,34553.0,5.56777376]
[1625332648137,1.20019586,34554.0,34553.0,5.56777376]
[1625332648584,2.22679033,34554.0,34553.0,5.56777376]
[1625332654995,2.49995033,34554.0,34553.0,5.35537376]
[1625332655997,2.49995033,34554.0,34553.0,5.29637376]
[1625332656751,3.69775715,34554.0,34553.0,3.9403008]
[1625332658454,3.69775715,34554.0,34553.0,3.8813008]
[1625332660309,3.69775715,34554.0,34553.0,3.9403008]
[1625332660408,3.69775715,34554.0,34553.0,3.8813008]
[1625332661261,3.69775715,34554.0,34553.0,3.9403008]
[1625332662264,5.06675818,34554.0,34553.0,3.9403008]
[1625332664823,3.69775715,34554.0,34553.0,3.9403008]
[1625332666125,5.06680017,34554.0,34553.0,3.9403008]
[1625332669436,5.06680017,34554.0,34553.0,3.8813008]
[1625332669536,5.06680017,34554.0,34553.0,2.69298862]
[1625332670037,6.60712966,34554.0,34553.0,1.0535222]
[1625332670734,6.8477051,34554.0,34553.0,1.0535222]
[1625332670935,6.9067051,34554.0,34553.0,1.0535222]
[1625332671286,6.8477051,34554.0,34553.0,1.0535222]
[1625332671387,6.8477051,34554.0,34553.0,1.73269634]
[1625332672037,5.30737561,34554.0,34553.0,1.73269634]
[1625332673992,5.30737561,34554.0,34553.0,1.67369634]
[1625332674092,5.36637561,34554.0,34553.0,1.67369634]
[1625332674193,6.90672974,34554.0,34553.0,1.67369634]
[1625332674394,6.84772974,34554.0,34553.0,1.67369634]
[1625332674594,6.90672974,34554.0,34553.0,1.67369634]
[1625332674746,6.84772974,34554.0,34553.0,1.33414695]
[1625332674995,6.90672974,34554.0,34553.0,1.33414695]
[1625332675197,6.90672974,34554.0,34553.0,0.9945222]
[1625332675746,6.90672974,34554.0,34553.0,1.07901774]
[1625332676046,6.84772974,34554.0,34553.0,1.07901774]
[1625332676596,6.84772974,34554.0,34553.0,0.99409825]
[1625332676697,6.90672974,34554.0,34553.0,0.99409825]
[1625332677296,6.90672974,34554.0,34553.0,1.07899446]
[1625332678053,6.92388524,34554.0,34553.0,0.7393165]
[1625332678600,6.92388524,34554.0,34553.0,0.48458131]
[1625332679650,6.92388524,34554.0,34553.0,0.56951802]
[1625332680350,6.90672974,34554.0,34553.0,0.56608759]
[1625332680602,6.92388559,34554.0,34553.0,0.56608759]
[1625332680701,6.92388559,34554.0,34553.0,0.56951876]
[1625332680851,6.92388559,34554.0,34553.0,0.48458205]
[1625332681302,6.92388559,34554.0,34553.0,0.56950387]
[1625332681955,6.92388559,34554.0,34553.0,0.48458205]
[1625332693788,6.92388559,34554.0,34553.0,0.48115088]
[1625332694092,6.92388559,34554.0,34553.0,0.48458216]
[1625332695091,6.86488559,34554.0,34553.0,0.48458216]
[1625332695345,6.84772974,34554.0,34553.0,0.48458216]
[1625332695445,6.84772974,34554.0,34553.0,0.54358216]
[1625332695844,6.84772974,34554.0,34553.0,1.1374833]
[1625332696443,5.30737561,34554.0,34553.0,1.05264028]
[1625332696895,5.06680017,34554.0,34553.0,1.05264028]
[1625332696996,5.06680017,34554.0,34553.0,0.88295424]
[1625332697499,5.06680017,34554.0,34553.0,1.73055687]
[1625332699752,5.06680017,34554.0,34553.0,1.67155687]
[1625332700555,5.06680017,34554.0,34553.0,1.3325691]
[1625332700904,5.30737561,34554.0,34553.0,1.3325691]
[1625332701104,5.30737561,34554.0,34553.0,0.99328561]
[1625332701656,6.84682171,34554.0,34553.0,1.07851377]
[1625332702255,6.86397674,34554.0,34553.0,1.07851377]
[1625332704160,6.92297674,34554.0,34552.0,0.16419801]
[1625332704259,6.98197674,34554.0,34552.0,0.16419801]
[1625332704560,0.01715715,34553.0,34552.0,0.16419801]
[1625332704709,0.13515715,34553.0,34552.0,0.16419801]
[1625332705009,0.13515715,34553.0,34530.0,0.2929]
[1625332705010,8.14454835,34553.0,34545.0,0.68007553]
[1625332705158,8.14454835,34553.0,34545.0,0.73907553]
[1625332705360,0.01715845,34552.0,34546.0,0.00343169]
[1625332705462,1.53942732,34547.0,34546.0,0.00343169]
[1625332705560,1.74064732,34547.0,34546.0,0.00343169]
[1625332705660,1.79964732,34547.0,34546.0,0.00343169]
[1625332705863,1.79964732,34547.0,34545.0,0.00343171]
[1625332706011,6.07654616,34547.0,34545.0,0.00343171]
[1625332706312,5.81659356,34546.0,34545.0,0.00343171]
[1625332706412,5.81659356,34546.0,34544.0,0.0034318]
[1625332706512,5.87559356,34546.0,34544.0,0.0034318]
[1625332706712,5.87559356,34546.0,34545.0,0.0034318]
[1625332706813,1.59863119,34546.0,34545.0,0.0034318]
[1625332706915,2.07978207,34546.0,34545.0,0.0034318]
[1625332707016,2.07978207,34546.0,34543.0,0.0034318]
[1625332707114,2.07978207,34546.0,34543.0,0.0624318]
[1625332707215,2.07978207,34546.0,34545.0,0.00343178]
[1625332707465,6.35674852,34546.0,34544.0,0.00343181]
[1625332707717,6.35674852,34546.0,34545.0,0.00343181]
[1625332708021,4.27602792,34545.0,34543.0,0.00343179]
[1625332708170,4.27602792,34545.0,34543.0,0.06243179]
[1625332708272,4.33502792,34545.0,34543.0,0.06243179]
[1625332708519,4.33502792,34545.0,34544.0,0.00343181]
[1625332708769,0.059,34545.0,34544.0,0.00343181]
[1625332708969,0.29957544,34545.0,34544.0,0.00343181]
[1625332709071,0.29957544,34545.0,34543.0,0.00343183]
[1625332709373,0.29957544,34545.0,34544.0,0.00343183]
[1625332709574,4.57561605,34545.0,34543.0,0.00343183]
[1625332709872,4.57561605,34545.0,34544.0,0.00343183]
[1625332710172,4.57561605,34545.0,34543.0,0.00343183]
[1625332710271,4.27531399,34544.0,34543.0,0.00343183]
[1625332710371,4.27531399,34544.0,34542.0,0.68040523]
[1625332710471,4.33431399,34544.0,34542.0,0.68040523]
[1625332710671,4.33431399,34544.0,34543.0,0.00343185]
[1625332710872,0.059,34544.0,34543.0,0.00343185]
[1625332710972,0.29957544,34544.0,34543.0,0.00343185]
[1625332711572,4.57489653,34544.0,34543.0,0.00343185]
[1625332712022,4.57489653,34544.0,34542.0,0.0034319]
[1625332712222,4.57489653,34544.0,34543.0,0.0034319]
[1625332712673,4.57489653,34544.0,34542.0,0.0034319]
[1625332712874,4.57489653,34544.0,34543.0,0.0034319]
[1625332713123,4.57489653,34544.0,34542.0,0.0034319]
[1625332713573,4.27389822,34543.0,34542.0,0.0034319]
[1625332713674,4.33289822,34543.0,34542.0,0.0034319]
[1625332716882,4.33289822,34543.0,34541.0,0.00343198]
[1625332717638,4.27293744,34542.0,34541.0,0.00343198]
[1625332717735,4.33193744,34542.0,34541.0,0.00343198]
[1625332720540,1.42623958,34542.0,34541.0,0.00343198]
[1625332720655,1.48523958,34542.0,34540.0,0.68135936]
[1625332720995,0.24057544,34541.0,34540.0,0.63805936]
[1625332721100,0.35857544,34541.0,34540.0,0.63805936]
[1625332721547,0.35857544,34541.0,34539.0,1.02203904]
[1625332721548,5.48634044,34541.0,34534.0,1.02335236]
[1625332721796,1.89687076,34541.0,34534.0,1.02335236]
[1625332721897,1.89687076,34541.0,34535.0,0.00343233]
[1625332722201,1.5374803,34539.0,34535.0,0.00343233]
[1625332722297,1.9312503,34539.0,34535.0,0.00343233]
[1625332722447,1.9312503,34539.0,34532.0,0.00343236]
[1625332722747,1.9312503,34539.0,34531.0,1.02351219]
[1625332722851,3.58753944,34536.0,34531.0,1.02351219]
[1625332722949,3.64653944,34536.0,34532.0,0.00343238]
[1625332723049,3.94611488,34536.0,34532.0,0.00343238]
[1625332723150,3.88711488,34536.0,34532.0,0.00343238]
[1625332723550,2.2208742,34533.0,34532.0,0.00343238]
[1625332723800,0.24057544,34536.0,34532.0,0.00343238]
[1625332723901,0.29957544,34536.0,34532.0,0.00343238]
[1625332724049,0.35857544,34536.0,34532.0,0.00343238]
[1625332724253,1.02459758,34533.0,34532.0,0.00343238]
[1625332724451,1.08359758,34533.0,34532.0,0.00343238]
[1625332725001,1.56474846,34533.0,34532.0,0.00343238]
[1625332725355,1.56474846,34533.0,34531.0,0.00343244]
[1625332725452,1.56474846,34533.0,34530.0,1.26372782]
[1625332725652,1.56474846,34533.0,34532.0,0.00343246]
[1625332725852,0.54015088,34533.0,34532.0,0.00343246]
[1625332725954,0.54015088,34533.0,34531.0,0.00343246]
[1625332726153,0.54015088,34533.0,34530.0,1.26372782]
[1625332726404,0.54015088,34533.0,34531.0,0.00343248]
[1625332727357,1.02433364,34532.0,34531.0,0.00343248]
[1625332727454,1.26300364,34532.0,34531.0,0.00343248]
[1625332734821,1.26300364,34532.0,34531.0,0.06243248]
[1625332734923,1.02433364,34532.0,34531.0,0.06243248]
[1625332735070,1.02433364,34532.0,34531.0,0.12143248]
[1625332735521,0.48115088,34533.0,34531.0,1.14251348]
[1625332735975,0.48115088,34533.0,34532.0,0.00343224]
[1625332736122,0.48115088,34533.0,34532.0,1.1419366]
[1625332736221,0.48115088,34533.0,34532.0,1.0829366]
[1625332736724,0.48115088,34533.0,34532.0,1.1419366]
[1625332736973,0.48115088,34533.0,34532.0,1.0829366]
[1625332737424,0.48115088,34533.0,34532.0,1.0239366]
[1625332737926,0.48115088,34533.0,34532.0,0.00343224]
[1625332738175,0.48115088,34533.0,34532.0,0.06243224]
[1625332738275,0.48115088,34533.0,34532.0,0.12143224]
[1625332738926,0.48115088,34533.0,34532.0,0.06243224]
[1625332739077,0.48115088,34533.0,34532.0,1.08321659]
[1625332739278,0.48115088,34533.0,34532.0,1.14221659]
[1625332739378,0.48115088,34533.0,34532.0,1.08321659]
[1625332739778,0.48115088,34533.0,34532.0,1.02421659]
[1625332740532,0.48115088,34533.0,34532.0,0.00343224]
[1625332741985,0.48115088,34533.0,34532.0,1.02452118]
[1625332742085,0.48115088,34533.0,34532.0,1.23131118]
[1625332742838,0.48115088,34533.0,34532.0,1.29031118]
[1625332742941,0.48115088,34533.0,34532.0,1.23131118]
[1625332743038,0.48115088,34533.0,34532.0,1.29031118]
[1625332743140,0.48115088,34533.0,34532.0,1.23131118]
[1625332743389,0.48115088,34533.0,34532.0,1.29031118]
[1625332743492,0.48115088,34533.0,34532.0,1.23131118]
[1625332743589,0.48115088,34533.0,34532.0,1.29031118]
[1625332743991,0.48115088,34533.0,34532.0,1.23131118]
[1625332744292,0.48115088,34533.0,34532.0,1.02452118]
[1625332748047,0.48115088,34533.0,34532.0,1.08352118]
[1625332748250,0.48115088,34533.0,34532.0,1.02452118]
[1625332749602,0.48115088,34533.0,34532.0,1.08352118]
[1625332749753,0.48115088,34533.0,34532.0,1.02452118]
[1625332750404,0.48115088,34533.0,34532.0,1.08352118]
[1625332750607,0.48115088,34533.0,34532.0,1.02452118]
[1625332750754,0.48115088,34533.0,34532.0,1.08352118]
[1625332750854,0.48115088,34533.0,34532.0,1.02452118]
[1625332752957,0.48115088,34533.0,34532.0,1.08352118]
[1625332753059,0.48115088,34533.0,34532.0,1.02452118]
[1625332757523,1.50587761,34533.0,34532.0,1.02452118]
[1625332758023,0.48115088,34533.0,34532.0,1.02452118]
[1625332760383,1.50647119,34533.0,34532.0,1.02452118]
[1625332760833,2.70274074,34533.0,34532.0,1.02452118]
[1625332760931,2.70274074,34533.0,34532.0,0.00343224]
[1625332761382,2.70274074,34533.0,34532.0,1.02834842]
[1625332763288,4.07158169,34533.0,34532.0,1.02834842]
[1625332765740,4.07158169,34533.0,34532.0,0.00343224]
[1625332766643,4.07158169,34533.0,34531.0,0.00343271]
[1625332767244,0.24057544,34532.0,34531.0,0.00343271]
[1625332767744,3.83454947,34532.0,34531.0,0.00343271]
[1625332775961,3.83454947,34532.0,34531.0,1.02994645]
[1625332777011,3.83454947,34532.0,34531.0,0.00343271]
[1625332777462,3.83454947,34532.0,34531.0,1.02978263]
[1625332779116,3.92164947,34532.0,34531.0,1.02978263]
[1625332779320,3.83454947,34532.0,34531.0,2.22690329]
[1625332781123,4.13783947,34532.0,34531.0,2.22690329]
[1625332781523,4.82317149,34532.0,34531.0,1.71417847]
[1625332783377,4.82317149,34532.0,34531.0,2.91295447]
[1625332783928,4.82317149,34532.0,34531.0,1.71417847]
[1625332786189,4.51988149,34532.0,34531.0,2.91261803]
[1625332786687,4.51988149,34532.0,34531.0,3.21689803]
[1625332790352,3.15077297,34532.0,34531.0,4.5846787]
[1625332794061,3.15077297,34532.0,34531.0,4.6436787]
[1625332794311,3.66426135,34532.0,34531.0,5.15749256]
[1625332794811,1.43939584,34532.0,34531.0,6.69879661]
[1625332795012,0.94608626,34533.0,34531.0,6.69879661]
[1625332795312,0.94608626,34533.0,34532.0,0.00343221]
[1625332795413,0.94608626,34533.0,34532.0,0.78415853]
[1625332795513,0.94608626,34533.0,34532.0,5.92124195]
[1625332796317,1.19881572,34537.0,34532.0,5.92124195]
[1625332796667,1.19881572,34537.0,34533.0,0.00343201]
[1625332796815,1.19881572,34537.0,34533.0,0.06243201]
[1625332797168,1.19881572,34537.0,34534.0,0.00343198]
[1625332797267,1.19881572,34537.0,34534.0,0.06243198]
[1625332797368,1.19881572,34537.0,34536.0,2.80775816]
[1625332797518,1.19881572,34537.0,34536.0,2.86675816]
[1625332797619,1.572e-05,34537.0,34536.0,2.92575816]
[1625332797719,1.572e-05,34537.0,34536.0,2.92918997]
[1625332798069,0.24057544,34540.0,34536.0,4.46870174]
[1625332798470,0.24057544,34540.0,34537.0,0.00343176]
[1625332798621,0.24057544,34540.0,34539.0,1.36820786]
[1625332798721,0.24057544,34540.0,34539.0,1.73060786]
[1625332799025,0.24057544,34540.0,34539.0,1.73403973]
[1625332799176,0.24057544,34540.0,34539.0,0.36583187]
[1625332799376,0.24057544,34540.0,34539.0,0.60640731]
[1625332799728,1.60981231,34540.0,34539.0,0.60640731]
[1625332799828,1.60981231,34540.0,34539.0,0.30300731]
[1625332801178,1.60981231,34540.0,34539.0,0.55837731]
[1625332803536,0.24057544,34540.0,34539.0,0.55837731]
[1625332804687,0.24057544,34540.0,34539.0,0.61737731]
[1625332805337,0.24057544,34540.0,34539.0,1.98084673]
[1625332805437,1.36878578,34542.0,34539.0,1.98084673]
[1625332805888,1.36878578,34542.0,34539.0,1.97741486]
[1625332805988,1.36843558,34543.0,34539.0,0.61394544]
[1625332806541,1.36843558,34543.0,34539.0,0.55494544]
[1625332806691,1.36843558,34543.0,34539.0,0.61394544]
[1625332806840,1.36843558,34543.0,34539.0,1.91967624]
[1625332806939,1.36843558,34543.0,34539.0,1.97867624]
[1625332807340,1.3683826,34542.0,34539.0,0.61394544]
[1625332807490,1.3683826,34542.0,34541.0,0.48115088]
[1625332807791,1.3683826,34542.0,34541.0,0.48458259]
[1625332808041,1.36813502,34543.0,34541.0,0.48458259]
[1625332808140,0.00213272,34542.0,34541.0,0.48458259]
[1625332809297,0.00213272,34542.0,34541.0,0.54358259]
[1625332811404,0.00213272,34542.0,34541.0,0.60258259]
[1625332811704,0.00101757,34542.0,34541.0,0.60258259]
[1625332812003,0.00101757,34542.0,34541.0,0.54358259]
[1625332812355,0.00101757,34542.0,34541.0,0.60258259]
[1625332812706,0.00101757,34542.0,34541.0,0.54358259]
[1625332813460,0.00101757,34542.0,34541.0,0.60258259]
[1625332813557,0.00101757,34542.0,34541.0,0.54358259]
[1625332817362,0.00101757,34542.0,34541.0,0.60258259]
[1625332817763,0.00101757,34542.0,34541.0,0.54358259]
[1625332819016,0.00101757,34542.0,34541.0,0.60258259]
[1625332819115,0.00101757,34542.0,34541.0,0.54358259]
[1625332819265,0.00101757,34542.0,34541.0,0.60258259]
[1625332819365,0.00101757,34542.0,34541.0,0.54358259]
[1625332819466,0.00101757,34542.0,34541.0,0.60258259]
[1625332821274,0.00101757,34542.0,34541.0,1.79142077]
[1625332821673,0.00101757,34542.0,34541.0,0.60258259]
[1625332826034,0.00101757,34542.0,34541.0,1.62377645]
[1625332827034,0.00101757,34542.0,34541.0,1.56477645]
[1625332828988,0.00101757,34542.0,34541.0,1.62377645]
[1625332830041,0.00101757,34542.0,34541.0,1.56477645]
[1625332830140,0.00100364,34542.0,34541.0,1.56477645]
[1625332831592,0.00101757,34542.0,34541.0,1.56477645]
[1625332832293,0.00101757,34542.0,34541.0,1.62377645]
[1625332832393,0.00101757,34542.0,34541.0,1.56477645]
[1625332832694,0.00101757,34542.0,34541.0,1.62377645]
[1625332833093,0.00101757,34542.0,34541.0,1.56477645]
[1625332833196,0.00101757,34542.0,34541.0,1.62377645]
[1625332834396,0.00101757,34542.0,34541.0,2.81487016]
[1625332836105,0.00101757,34542.0,34541.0,4.17533881]
[1625332838711,0.34279677,34542.0,34541.0,4.17533881]
[1625332844671,0.00101757,34542.0,34541.0,4.17533881]
[1625332845274,0.34307472,34542.0,34541.0,4.17533881]
[1625332845774,0.34307472,34542.0,34541.0,4.1719071]
[1625332846073,0.34307472,34542.0,34541.0,4.17533852]
[1625332847629,0.00101757,34542.0,34541.0,5.70890294]
[1625332849781,0.00101757,34542.0,34541.0,4.17533852]
[1625332850885,0.34331284,34542.0,34541.0,4.17533852]
[1625332851485,0.00101757,34542.0,34541.0,5.71026]
[1625332854791,1.02863262,34542.0,34541.0,5.71026]
[1625332855190,1.71375746,34542.0,34541.0,6.3930047]
[1625332855741,0.68614241,34542.0,34541.0,6.3930047]
[1625332856292,1.71373255,34542.0,34541.0,6.3930047]
[1625332860149,1.71373255,34542.0,34541.0,4.85808322]
[1625332861299,1.71373255,34542.0,34541.0,6.39380612]
[1625332863006,1.71373255,34542.0,34541.0,4.85808322]
[1625332864104,1.71373255,34542.0,34541.0,6.39422106]
[1625332866111,1.71373255,34542.0,34541.0,4.85808322]
[1625332866667,2.91296684,34542.0,34541.0,4.85808322]
[1625332866963,2.91194927,34542.0,34541.0,4.85808322]
[1625332867114,1.71271498,34542.0,34541.0,6.3947015]
[1625332868465,1.71271498,34542.0,34541.0,6.40327941]
[1625332868565,1.71271498,34542.0,34541.0,6.43477941]
[1625332868767,0.51422193,34542.0,34541.0,6.43477941]
[1625332869167,0.1714278,34543.0,34541.0,6.43477941]
[1625332869517,0.1714278,34543.0,34542.0,0.01200898]
[1625332869668,0.1714278,34543.0,34542.0,0.07100898]
[1625332869768,0.1714278,34543.0,34542.0,5.92750908]
[1625332870068,0.1714278,34543.0,34542.0,5.95900908]
[1625332871174,0.1714278,34543.0,34542.0,5.95043124]
[1625332871476,0.51409031,34544.0,34542.0,5.95043124]
[1625332871776,0.51409031,34544.0,34543.0,0.24057544]
[1625332871876,0.51409031,34544.0,34543.0,0.35857544]
[1625332871976,0.51409031,34544.0,34543.0,0.36200658]
[1625332872126,0.34268433,34544.0,34543.0,6.16834574]
[1625332872378,0.34268433,34544.0,34543.0,6.19984574]
[1625332872578,0.51407117,34544.0,34543.0,6.19984574]
[1625332873684,0.34268433,34544.0,34543.0,6.19984574]
[1625332874332,0.51407689,34544.0,34543.0,6.19984574]
[1625332875485,1.71237225,34544.0,34543.0,6.19984574]
[1625332875887,1.71237225,34544.0,34543.0,4.66287361]
[1625332879192,1.71237225,34544.0,34543.0,6.20271671]
[1625332879744,1.71237225,34544.0,34543.0,4.66287361]
[1625332881146,1.71237225,34544.0,34543.0,6.20229446]
[1625332881450,1.71237225,34544.0,34543.0,4.66287361]
[1625332883101,1.71237225,34544.0,34543.0,6.20213354]
[1625332883551,1.71237225,34544.0,34543.0,4.66287361]
[1625332885152,2.22635002,34544.0,34543.0,5.1762793]
[1625332885953,3.42542891,34544.0,34543.0,5.1762793]
[1625332893525,3.42542891,34544.0,34543.0,5.1447793]
[1625332894076,2.22635002,34544.0,34543.0,6.62783739]
[1625332895632,2.22635002,34544.0,34543.0,6.68683739]
[1625332897135,0.85682729,34544.0,34543.0,6.68683739]
[1625332897788,0.60019725,34544.0,34543.0,6.68683739]
[1625332899992,0.25734773,34544.0,34543.0,6.68683739]
[1625332900593,0.60018129,34544.0,34543.0,6.68683739]
[1625332901197,0.25734773,34544.0,34543.0,6.68683739]
[1625332901895,0.60016161,34544.0,34543.0,6.68683739]
[1625332902697,0.25734773,34544.0,34543.0,6.68683739]
[1625332903048,0.08583969,34544.0,34543.0,6.68683739]
[1625332903548,0.08583969,34544.0,34543.0,8.39777223]
[1625332903998,0.60013375,34545.0,34543.0,8.39777223]
[1625332904300,0.60013375,34545.0,34544.0,0.00343096]
[1625332904400,0.60013375,34545.0,34544.0,0.12143096]
[1625332904601,0.60013375,34545.0,34544.0,6.45015097]
[1625332905101,0.68543907,34547.0,34544.0,6.45015097]
[1625332905102,0.08582391,34547.0,34544.0,8.19083019]
[1625332905401,0.08582391,34547.0,34545.0,0.0034308]
[1625332905551,0.08582391,34547.0,34545.0,0.1214308]
[1625332905802,0.60008104,34548.0,34546.0,8.03176778]
[1625332905951,0.60008104,34548.0,34547.0,0.48115088]
[1625332906152,0.60008104,34548.0,34547.0,0.48458156]
[1625332906251,0.60008104,34548.0,34547.0,0.60258156]
[1625332906502,0.2572993,34548.0,34547.0,6.92520167]
[1625332906703,0.2572993,34548.0,34547.0,6.93377782]
[1625332906802,0.2572993,34548.0,34547.0,6.96527782]
[1625332906954,0.2572993,34548.0,34547.0,7.39872882]
[1625332907203,0.25718827,34553.0,34547.0,9.10467579]
[1625332907501,0.25718827,34553.0,34548.0,0.00343042]
[1625332907601,0.25718827,34553.0,34548.0,0.06243042]
[1625332907704,0.59982327,34553.0,34552.0,6.31357377]
[1625332907903,0.59982327,34553.0,34552.0,6.85372465]
[1625332908154,0.59982327,34553.0,34552.0,6.91615504]
[1625332908256,0.25718827,34553.0,34552.0,6.91615504]
[1625332908706,0.59981528,34553.0,34552.0,6.91615504]
[1625332909459,0.25718827,34553.0,34552.0,6.91615504]
[1625332910209,0.0857865,34553.0,34552.0,6.91615504]
[1625332910911,0.25700194,34554.0,34552.0,6.91615504]
[1625332911311,0.25700194,34554.0,34553.0,0.00343031]
[1625332911415,0.25700194,34554.0,34553.0,0.12143031]
[1625332911512,0.25700194,34554.0,34553.0,6.43067199]
[1625332911916,0.25700194,34554.0,34553.0,6.67124743]
[1625332912317,0.59911574,34555.0,34553.0,6.67124743]
[1625332912619,0.5989597,34556.0,34554.0,6.30756182]
[1625332912720,0.5989597,34556.0,34554.0,6.36656182]
[1625332912821,0.5989597,34556.0,34554.0,6.42556182]
[1625332912921,0.5989597,34556.0,34555.0,0.00343027]
[1625332913022,0.5989597,34556.0,34555.0,1.48452491]
[1625332913122,0.51329632,34556.0,34555.0,6.42574298]
[1625332913926,0.51329632,34556.0,34555.0,6.66631842]
[1625332914075,0.51329632,34556.0,34555.0,6.97891842]
[1625332914181,0.59895708,34556.0,34555.0,6.97891842]
[1625332914479,0.59895708,34556.0,34555.0,6.98749404]
[1625332914877,0.08566076,34556.0,34555.0,6.98749404]
[1625332916632,0.2566974,34557.0,34555.0,6.98749404]
[1625332917035,0.2566974,34557.0,34556.0,0.0145104]
[1625332917133,0.59860266,34557.0,34556.0,4.78168051]
[1625332917233,0.59860266,34557.0,34556.0,4.89968051]
[1625332917584,0.2566974,34557.0,34556.0,4.89968051]
[1625332918585,0.512994,34557.0,34556.0,4.89968051]
[1625332919286,0.59857983,34557.0,34556.0,4.89968051]
[1625332921038,0.25667956,34557.0,34556.0,4.89968051]
[1625332921640,0.25667956,34557.0,34556.0,5.17757051]
[1625332921841,0.08558583,34557.0,34556.0,5.17757051]
[1625332922743,0.59830254,34558.0,34556.0,5.17757051]
[1625332923095,0.59830254,34558.0,34557.0,0.0059346]
[1625332923193,0.59830254,34558.0,34557.0,0.07351009]
[1625332923344,0.59830254,34558.0,34557.0,4.8985073]
[1625332923894,0.51273443,34558.0,34557.0,4.8985073]
[1625332923995,0.51273443,34558.0,34557.0,5.13908274]
[1625332928357,0.25650906,34558.0,34557.0,5.13908274]
[1625332928959,0.59807059,34559.0,34557.0,5.13908274]
[1625332929460,0.59807059,34559.0,34558.0,0.01450984]
[1625332929661,0.59807059,34559.0,34558.0,0.07350984]
[1625332929761,0.08552823,34559.0,34558.0,4.89475992]
[1625332930012,0.08552823,34559.0,34558.0,5.13533536]
[1625332930114,0.59801681,34559.0,34558.0,5.13533536]
[1625332930962,0.59801681,34559.0,34558.0,3.77469248]
[1625332932516,0.25641466,34559.0,34558.0,3.77469248]
[1625332933765,0.25641466,34559.0,34558.0,3.71569248]
[1625332934167,0.5979213,34559.0,34558.0,3.71569248]
[1625332935275,0.51214227,34559.0,34558.0,2.52512996]
[1625332935372,0.51214227,34559.0,34558.0,2.58412996]
[1625332935522,0.51214227,34559.0,34558.0,2.52512996]
[1625332935825,0.34147681,34559.0,34558.0,3.71443353]
[1625332936423,0.85360584,34559.0,34558.0,3.71443353]
[1625332936773,0.85360584,34559.0,34558.0,3.77343353]
[1625332936875,0.85360584,34559.0,34558.0,3.71443353]
[1625332937022,0.51230277,34559.0,34558.0,3.71443353]
[1625332937123,0.51230277,34559.0,34558.0,3.77343353]
[1625332937223,0.51230277,34559.0,34558.0,3.71443353]
[1625332937372,0.51230277,34559.0,34558.0,3.77343353]
[1625332937473,0.51230277,34559.0,34558.0,3.71443353]
[1625332937777,0.51230277,34559.0,34558.0,3.77343353]
[1625332937876,0.51230277,34559.0,34558.0,3.71443353]
[1625332937976,0.51230277,34559.0,34558.0,3.77343353]
[1625332938076,0.51230277,34559.0,34558.0,3.71443353]
[1625332938228,0.51230277,34559.0,34558.0,3.77343353]
[1625332938329,0.51230277,34559.0,34558.0,3.71443353]
[1625332938680,0.51230277,34559.0,34558.0,3.77343353]
[1625332939180,0.59780171,34559.0,34558.0,3.77343353]
[1625332940083,0.59780171,34559.0,34558.0,3.76485818]
[1625332941691,0.59780171,34559.0,34558.0,3.77343345]
[1625332941892,0.5978036,34560.0,34558.0,5.13442697]
[1625332942241,0.51273268,34561.0,34559.0,4.77614258]
[1625332942242,0.25691305,34561.0,34559.0,4.77614258]
[1625332942392,0.25691305,34561.0,34559.0,4.83514258]
[1625332942492,0.25691305,34561.0,34559.0,4.89414258]
[1625332942592,0.25691305,34561.0,34560.0,3.40136925]
[1625332942792,0.25691305,34561.0,34560.0,3.46036925]
[1625332942896,0.25691305,34561.0,34560.0,3.52477616]
[1625332943095,0.08609308,34561.0,34560.0,4.88521941]
[1625332943447,0.39837992,34562.0,34560.0,4.89379401]
[1625332943896,0.39837992,34562.0,34561.0,0.00540645]
[1625332944147,0.39837992,34562.0,34561.0,0.36398189]
[1625332944247,0.21037992,34562.0,34561.0,0.36398189]
[1625332944451,1.08689658,34566.0,34561.0,6.65438356]
[1625332944548,1.08689658,34566.0,34561.0,6.68588356]
[1625332944749,1.08689658,34566.0,34562.0,0.00540618]
[1625332944899,1.08689658,34566.0,34562.0,0.12340618]
[1625332945099,0.9161,34566.0,34565.0,3.39981046]
[1625332945200,0.9161,34566.0,34565.0,3.61273046]
[1625332945301,0.9161,34566.0,34565.0,3.73073046]
[1625332945402,1.12146496,34567.0,34565.0,3.73073046]
[1625332945500,0.17076496,34567.0,34565.0,3.73613665]